[Event "*** Titled Tuesday Blitz"]
[Site "Chess.com"]
[Date "2019.09.03"]
[Round "3"]
[White "KhalilMousavi77"]
[Black "chess3054"]
[Result "0-1"]
[WhiteElo "2789"]
[BlackElo "2487"]
[TimeControl "180+2"]
[EndTime "15:38:17 PDT"]
[Termination "chess3054 won by resignation"]

1. e4 {[%clk 0:03:01.6]} 1... e6 {[%clk 0:03:00.9]} 2. d4 {[%clk 0:03:00.6]}
2... d5 {[%clk 0:03:02.1]} 3. Nc3 {[%clk 0:03:02]} 3... Nf6 {[%clk 0:03:02.6]}
4. Bg5 {[%clk 0:03:01.8]} 4... Bb4 {[%clk 0:03:03]} 5. e5 {[%clk 0:03:02.7]}
5... h6 {[%clk 0:03:03.9]} 6. Bd2 {[%clk 0:03:04.1]} 6... Bxc3 {[%clk 0:03:04]}
7. bxc3 {[%clk 0:03:06]} 7... Ne4 {[%clk 0:03:05.7]} 8. Qg4 {[%clk 0:03:07.7]}
8... g6 {[%clk 0:03:07.2]} 9. Bd3 {[%clk 0:03:09.2]} 9... Nxd2 {[%clk
0:03:07.5]} 10. Kxd2 {[%clk 0:03:11.1]} 10... c5 {[%clk 0:03:09]} 11. h4 {[%clk
0:03:10]} 11... Nd7 {[%clk 0:03:06.7]} 12. Rh3 {[%clk 0:03:09.3]} 12... Qe7
{[%clk 0:02:57.5]} 13. Rf3 {[%clk 0:03:08.5]} 13... c4 {[%clk 0:02:45.2]} 14.
Rxf7 {[%clk 0:02:38.6]} 14... Kxf7 {[%clk 0:02:32.6]} 15. Bxg6+ {[%clk
0:02:39.1]} 15... Kf8 {[%clk 0:02:08.5]} 16. Re1 {[%clk 0:02:38.6]} 16... Rg8
{[%clk 0:01:27.9]} 17. Re3 {[%clk 0:02:37.9]} 17... Rg7 {[%clk 0:01:27.9]} 18.
Ne2 {[%clk 0:01:46.9]} 18... Kg8 {[%clk 0:01:28]} 19. Nf4 {[%clk 0:01:45.9]}
19... Nf8 {[%clk 0:01:28.8]} 20. Rg3 {[%clk 0:01:36.3]} 20... Bd7 {[%clk
0:01:17.7]} 21. Qh5 {[%clk 0:01:27.4]} 21... Nxg6 {[%clk 0:01:05.5]} 22. Nxg6
{[%clk 0:01:26]} 22... Qf7 {[%clk 0:01:05.2]} 23. Qg4 {[%clk 0:00:46.5]} 23...
Kh7 {[%clk 0:00:49.3]} 24. h5 {[%clk 0:00:46.2]} 24... Qxf2+ {[%clk 0:00:44.3]}
25. Kc1 {[%clk 0:00:46.9]} 25... Qf5 {[%clk 0:00:41.6]} 26. Qh4 {[%clk
0:00:47.2]} 26... Rag8 {[%clk 0:00:34.2]} 27. Kb2 {[%clk 0:00:31.9]} 27... Be8
{[%clk 0:00:33.2]} 28. Ne7 {[%clk 0:00:17.9]} 28... Qxh5 {[%clk 0:00:22.4]} 29.
Qxh5 {[%clk 0:00:05.9]} 29... Bxh5 {[%clk 0:00:21.6]} 30. Nxg8 {[%clk
0:00:07.6]} 30... Rxg3 {[%clk 0:00:20.9]} 31. Nf6+ {[%clk 0:00:08.7]} 31... Kg6
{[%clk 0:00:21.9]} 32. Nd7 {[%clk 0:00:10.2]} 32... Rxg2 {[%clk 0:00:22.4]} 33.
Nc5 {[%clk 0:00:11.7]} 33... Bd1 {[%clk 0:00:23.2]} 34. Nxe6 {[%clk 0:00:13]}
34... Rxc2+ {[%clk 0:00:22]} 35. Ka3 {[%clk 0:00:14.8]} 35... h5 {[%clk
0:00:22.5]} 36. Nf4+ {[%clk 0:00:15]} 36... Kf7 {[%clk 0:00:24]} 37. Nxd5 {[%clk
0:00:16.9]} 37... h4 {[%clk 0:00:24.9]} 38. Kb4 {[%clk 0:00:17.4]} 38... h3
{[%clk 0:00:26]} 39. Nf4 {[%clk 0:00:19.3]} 39... h2 {[%clk 0:00:26.6]} 40. e6+
{[%clk 0:00:21.2]} 40... Ke7 {[%clk 0:00:26.5]} 41. d5 {[%clk 0:00:23.1]} 41...
h1=Q {[%clk 0:00:27.3]} 42. Kxc4 {[%clk 0:00:24.4]} 42... Qe4+ {[%clk
0:00:27.6]} 0-1

[Event "*** Titled Tuesday Blitz"]
[Site "Chess.com"]
[Date "2019.09.03"]
[Round "3"]
[White "przemekpiotrowski"]
[Black "GMsKoRPioN"]
[Result "1-0"]
[WhiteElo "2381"]
[BlackElo "2544"]
[TimeControl "180+2"]
[EndTime "15:38:20 PDT"]
[Termination "przemekpiotrowski won by checkmate"]

1. d4 {[%clk 0:03:01.9]} 1... d6 {[%clk 0:03:01.2]} 2. Nf3 {[%clk 0:03:02.8]}
2... g6 {[%clk 0:03:03.1]} 3. g3 {[%clk 0:03:00.9]} 3... Bg7 {[%clk 0:03:04.6]}
4. Bg2 {[%clk 0:03:02.5]} 4... Nf6 {[%clk 0:03:06.2]} 5. O-O {[%clk 0:03:04]}
5... O-O {[%clk 0:03:08.1]} 6. c4 {[%clk 0:03:05.5]} 6... Nc6 {[%clk 0:03:09.6]}
7. Nc3 {[%clk 0:03:06.7]} 7... e5 {[%clk 0:03:11.2]} 8. dxe5 {[%clk 0:03:06.5]}
8... Nxe5 {[%clk 0:03:13.1]} 9. Nxe5 {[%clk 0:03:06.6]} 9... dxe5 {[%clk
0:03:15]} 10. Qc2 {[%clk 0:03:01.8]} 10... c6 {[%clk 0:03:14.2]} 11. Bg5 {[%clk
0:03:00.6]} 11... h6 {[%clk 0:03:12.4]} 12. Bxf6 {[%clk 0:03:01.2]} 12... Qxf6
{[%clk 0:03:12.5]} 13. Rad1 {[%clk 0:03:03.1]} 13... Be6 {[%clk 0:03:12.5]} 14.
Ne4 {[%clk 0:03:02.5]} 14... Qe7 {[%clk 0:03:12.5]} 15. c5 {[%clk 0:02:59.2]}
15... Rfd8 {[%clk 0:03:11.3]} 16. Nd6 {[%clk 0:02:55.5]} 16... Bf8 {[%clk
0:03:12.5]} 17. Rd2 {[%clk 0:02:51.2]} 17... Qc7 {[%clk 0:03:12.3]} 18. Rfd1
{[%clk 0:02:52.4]} 18... Bxd6 {[%clk 0:03:13.6]} 19. Rxd6 {[%clk 0:02:52.6]}
19... Rxd6 {[%clk 0:03:11.8]} 20. Rxd6 {[%clk 0:02:53.4]} 20... a5 {[%clk
0:03:06.3]} 21. a3 {[%clk 0:02:46.2]} 21... Qe7 {[%clk 0:03:01.5]} 22. Qd2
{[%clk 0:02:40.6]} 22... Kg7 {[%clk 0:03:01.3]} 23. h4 {[%clk 0:02:41.9]} 23...
h5 {[%clk 0:03:01.1]} 24. Be4 {[%clk 0:02:39.7]} 24... a4 {[%clk 0:03:01.5]} 25.
Qc3 {[%clk 0:02:35.6]} 25... Bb3 {[%clk 0:02:41.8]} 26. Bc2 {[%clk 0:02:12.7]}
26... Bxc2 {[%clk 0:02:36.9]} 27. Qxc2 {[%clk 0:02:14.6]} 27... Rd8 {[%clk
0:02:38.3]} 28. Rxd8 {[%clk 0:01:27.6]} 28... Qxd8 {[%clk 0:02:40.2]} 29. Qxa4
{[%clk 0:01:29.1]} 29... Qd2 {[%clk 0:02:41]} 30. Qb3 {[%clk 0:01:14.5]} 30...
Qxe2 {[%clk 0:02:39.4]} 31. Qxb7 {[%clk 0:01:14.3]} 31... Qd1+ {[%clk 0:02:39]}
32. Kh2 {[%clk 0:01:12.9]} 32... Qf3 {[%clk 0:02:40]} 33. Kg1 {[%clk 0:01:07.2]}
33... Qd1+ {[%clk 0:02:40.8]} 34. Kg2 {[%clk 0:01:08.1]} 34... Qd5+ {[%clk
0:02:42]} 35. Kg1 {[%clk 0:01:05.6]} 35... Qxc5 {[%clk 0:02:28.4]} 36. Qb3
{[%clk 0:01:05.3]} 36... Qc1+ {[%clk 0:02:20.3]} 37. Kg2 {[%clk 0:01:05.1]}
37... Qc5 {[%clk 0:02:15.6]} 38. a4 {[%clk 0:01:04.1]} 38... f6 {[%clk
0:02:16.7]} 39. Qc3 {[%clk 0:00:59.3]} 39... Qd5+ {[%clk 0:02:17.7]} 40. Kh2
{[%clk 0:00:58.3]} 40... Qd4 {[%clk 0:01:55.6]} 41. Qxd4 {[%clk 0:00:41.8]}
41... exd4 {[%clk 0:01:57.4]} 42. Kg2 {[%clk 0:00:43.1]} 42... c5 {[%clk
0:01:58.8]} 43. Kf3 {[%clk 0:00:43.8]} 43... c4 {[%clk 0:01:51.9]} 44. Ke4
{[%clk 0:00:40.7]} 44... d3 {[%clk 0:01:50.8]} 45. Ke3 {[%clk 0:00:39.4]} 45...
g5 {[%clk 0:01:51.7]} 46. a5 {[%clk 0:00:39.3]} 46... f5 {[%clk 0:01:53.2]} 47.
a6 {[%clk 0:00:36.5]} 47... f4+ {[%clk 0:01:55]} 48. Kd2 {[%clk 0:00:37.4]}
48... gxh4 {[%clk 0:01:56.9]} 49. gxh4 {[%clk 0:00:38.1]} 49... Kg6 {[%clk
0:01:56.2]} 50. a7 {[%clk 0:00:39.2]} 50... Kf5 {[%clk 0:01:58]} 51. a8=Q {[%clk
0:00:40.4]} 51... Kg4 {[%clk 0:01:59.9]} 52. Qh1 {[%clk 0:00:32.2]} 52... Kf5
{[%clk 0:01:59]} 53. Qg2 {[%clk 0:00:32.5]} 53... Ke5 {[%clk 0:01:59.5]} 54.
Qg5+ {[%clk 0:00:30]} 54... Kd4 {[%clk 0:02:01.3]} 55. Qxf4+ {[%clk 0:00:30.5]}
55... Kc5 {[%clk 0:02:03.2]} 56. Qg5+ {[%clk 0:00:28.8]} 56... Kd4 {[%clk
0:02:05.1]} 57. Qxh5 {[%clk 0:00:29]} 57... Ke4 {[%clk 0:02:07]} 58. Qg4+ {[%clk
0:00:29.5]} 58... Kd5 {[%clk 0:02:08.1]} 59. Kc3 {[%clk 0:00:29.9]} 59... Kc5
{[%clk 0:02:08.2]} 60. Qxc4+ {[%clk 0:00:31.8]} 60... Kb6 {[%clk 0:02:09.5]} 61.
Kxd3 {[%clk 0:00:32.9]} 61... Ka5 {[%clk 0:02:11.4]} 62. Qb3 {[%clk 0:00:33.2]}
62... Ka6 {[%clk 0:02:12.5]} 63. Kc4 {[%clk 0:00:31.8]} 63... Ka5 {[%clk
0:02:14.3]} 64. Qb5# {[%clk 0:00:26]} 1-0

[Event "*** Titled Tuesday Blitz"]
[Site "Chess.com"]
[Date "2019.09.03"]
[Round "3"]
[White "StephenDedalus83"]
[Black "alishersuleymenov"]
[Result "0-1"]
[WhiteElo "2824"]
[BlackElo "2640"]
[TimeControl "180+2"]
[EndTime "15:38:35 PDT"]
[Termination "alishersuleymenov won by checkmate"]

1. g3 {[%clk 0:03:01.9]} 1... Nf6 {[%clk 0:03:00.7]} 2. Bg2 {[%clk 0:03:02]}
2... g6 {[%clk 0:03:02]} 3. e4 {[%clk 0:03:01.6]} 3... d6 {[%clk 0:03:03.1]} 4.
d4 {[%clk 0:03:02.4]} 4... Bg7 {[%clk 0:03:04.4]} 5. Ne2 {[%clk 0:03:02.6]} 5...
O-O {[%clk 0:03:05.6]} 6. O-O {[%clk 0:03:03.5]} 6... e5 {[%clk 0:03:01.7]} 7.
Nbc3 {[%clk 0:03:03.9]} 7... Nc6 {[%clk 0:03:00.2]} 8. d5 {[%clk 0:02:35.2]}
8... Ne7 {[%clk 0:02:59.2]} 9. f4 {[%clk 0:02:34.1]} 9... exf4 {[%clk
0:02:56.1]} 10. gxf4 {[%clk 0:02:34.9]} 10... Ne8 {[%clk 0:02:03.3]} 11. Nd4
{[%clk 0:02:29]} 11... f5 {[%clk 0:01:59]} 12. Ne6 {[%clk 0:02:27.3]} 12... Bxe6
{[%clk 0:01:59.6]} 13. dxe6 {[%clk 0:02:27.9]} 13... fxe4 {[%clk 0:01:47.1]} 14.
Nxe4 {[%clk 0:02:27.8]} 14... c6 {[%clk 0:01:48.5]} 15. Be3 {[%clk 0:02:24]}
15... Nf5 {[%clk 0:01:43.3]} 16. Bf2 {[%clk 0:02:23.8]} 16... Nc7 {[%clk
0:01:44.3]} 17. Ng3 {[%clk 0:01:46.3]} 17... Nxe6 {[%clk 0:01:14]} 18. Nxf5
{[%clk 0:01:46.9]} 18... gxf5 {[%clk 0:01:15.9]} 19. Qf3 {[%clk 0:01:46.6]}
19... Qf6 {[%clk 0:01:07.4]} 20. c3 {[%clk 0:01:47.3]} 20... a6 {[%clk
0:00:58.2]} 21. Kh1 {[%clk 0:01:47.8]} 21... Kh8 {[%clk 0:00:52]} 22. Rg1 {[%clk
0:01:48.1]} 22... Qh6 {[%clk 0:00:27.8]} 23. Bg3 {[%clk 0:01:43.7]} 23... Nc5
{[%clk 0:00:26.6]} 24. Raf1 {[%clk 0:01:02.3]} 24... Rae8 {[%clk 0:00:26.9]} 25.
Be1 {[%clk 0:01:00.8]} 25... Ne4 {[%clk 0:00:20.7]} 26. Qh3 {[%clk 0:01:01.5]}
26... Qxh3 {[%clk 0:00:20.2]} 27. Bxh3 {[%clk 0:01:02.6]} 27... Nc5 {[%clk
0:00:17.8]} 28. Rg2 {[%clk 0:01:01.8]} 28... Nd3 {[%clk 0:00:15.8]} 29. Bh4
{[%clk 0:01:02.5]} 29... Bh6 {[%clk 0:00:13.3]} 30. Bg5 {[%clk 0:01:03.1]} 30...
Bxg5 {[%clk 0:00:13.9]} 31. fxg5 {[%clk 0:01:04.1]} 31... f4 {[%clk 0:00:11.5]}
32. Rd2 {[%clk 0:01:05]} 32... Re3 {[%clk 0:00:11.6]} 33. Bg4 {[%clk 0:01:06]}
33... f3 {[%clk 0:00:12.2]} 34. Rfd1 {[%clk 0:00:56.7]} 34... f2 {[%clk
0:00:11.1]} 35. Kg2 {[%clk 0:00:41.8]} 35... Re1 {[%clk 0:00:09.2]} 36. Be2
{[%clk 0:00:41.2]} 36... Nxb2 {[%clk 0:00:04.2]} 37. Rxb2 {[%clk 0:00:18.6]}
37... Rxd1 {[%clk 0:00:05.3]} 38. Rxb7 {[%clk 0:00:16.5]} 38... f1=Q+ {[%clk
0:00:05.9]} 39. Bxf1 {[%clk 0:00:17.3]} 39... Rdxf1 {[%clk 0:00:07.8]} 40. Rd7
{[%clk 0:00:17.4]} 40... R1f2+ {[%clk 0:00:08.8]} 41. Kg3 {[%clk 0:00:18.4]}
41... R2f3+ {[%clk 0:00:09.5]} 42. Kg4 {[%clk 0:00:19.6]} 42... R8f4+ {[%clk
0:00:10.3]} 43. Kh5 {[%clk 0:00:18.8]} 43... Rh3# {[%clk 0:00:12.2]} 0-1

[Event "*** Titled Tuesday Blitz"]
[Site "Chess.com"]
[Date "2019.09.03"]
[Round "3"]
[White "GCamachoMartinez"]
[Black "kleinebeer98"]
[Result "1/2-1/2"]
[WhiteElo "2422"]
[BlackElo "2660"]
[TimeControl "180+2"]
[EndTime "15:38:42 PDT"]
[Termination "Game drawn by repetition"]

1. d4 {[%clk 0:03:01.9]} 1... Nf6 {[%clk 0:03:00.5]} 2. c4 {[%clk 0:03:02.6]}
2... e6 {[%clk 0:02:58.5]} 3. Nf3 {[%clk 0:03:01.7]} 3... b6 {[%clk 0:02:59.3]}
4. g3 {[%clk 0:03:02.2]} 4... Bb7 {[%clk 0:03:00.5]} 5. Bg2 {[%clk 0:03:02.5]}
5... Be7 {[%clk 0:03:02.1]} 6. O-O {[%clk 0:03:02.8]} 6... O-O {[%clk
0:03:03.7]} 7. Nc3 {[%clk 0:03:04]} 7... Ne4 {[%clk 0:03:05.2]} 8. Qc2 {[%clk
0:03:05.1]} 8... Nxc3 {[%clk 0:03:05.9]} 9. Qxc3 {[%clk 0:03:06]} 9... Bf6
{[%clk 0:03:05.9]} 10. b3 {[%clk 0:02:58.1]} 10... c5 {[%clk 0:03:04]} 11. Bb2
{[%clk 0:02:59.6]} 11... Nc6 {[%clk 0:03:04.3]} 12. Qd2 {[%clk 0:03:00.7]} 12...
Nxd4 {[%clk 0:03:02.3]} 13. Nxd4 {[%clk 0:03:01.5]} 13... Bxg2 {[%clk
0:03:03.5]} 14. Kxg2 {[%clk 0:03:03.3]} 14... cxd4 {[%clk 0:03:03.9]} 15. Bxd4
{[%clk 0:03:05.2]} 15... Bxd4 {[%clk 0:02:54.5]} 16. Qxd4 {[%clk 0:03:07.1]}
16... Qc7 {[%clk 0:02:51.4]} 17. Rad1 {[%clk 0:03:06.7]} 17... Rfd8 {[%clk
0:02:52]} 18. e4 {[%clk 0:03:05.9]} 18... d6 {[%clk 0:02:51.3]} 19. Rd2 {[%clk
0:02:52.6]} 19... Qc6 {[%clk 0:02:48.1]} 20. Rfd1 {[%clk 0:02:44.5]} 20... Rd7
{[%clk 0:02:47]} 21. f3 {[%clk 0:02:42.1]} 21... Rad8 {[%clk 0:02:48.3]} 22. h4
{[%clk 0:02:30.7]} 22... h6 {[%clk 0:02:46]} 23. h5 {[%clk 0:02:31.2]} 23... Kh7
{[%clk 0:02:42.8]} 24. g4 {[%clk 0:02:32.1]} 24... Kg8 {[%clk 0:02:42.3]} 25.
Kg3 {[%clk 0:02:27.9]} 25... Qc7 {[%clk 0:02:34.7]} 26. Kg2 {[%clk 0:02:28]}
26... Qb7 {[%clk 0:02:28.4]} 27. Qe3 {[%clk 0:02:19.6]} 27... b5 {[%clk
0:02:26.1]} 28. cxb5 {[%clk 0:02:11.9]} 28... Qxb5 {[%clk 0:02:28]} 29. Qf4
{[%clk 0:02:13.1]} 29... Qc5 {[%clk 0:02:19.2]} 30. Qg3 {[%clk 0:01:45.2]} 30...
a5 {[%clk 0:02:15.7]} 31. Qf2 {[%clk 0:01:45.8]} 31... Qc6 {[%clk 0:02:11.9]}
32. Rc2 {[%clk 0:01:42.7]} 32... Qa8 {[%clk 0:02:12.4]} 33. Qd4 {[%clk
0:01:27.1]} 33... Qb7 {[%clk 0:01:59.7]} 34. Rdc1 {[%clk 0:01:26.7]} 34... Kh7
{[%clk 0:01:51.6]} 35. Rc6 {[%clk 0:01:26.1]} 35... Qb5 {[%clk 0:01:49.8]} 36.
Qc4 {[%clk 0:01:25.1]} 36... Qg5 {[%clk 0:01:49]} 37. Qd3 {[%clk 0:01:21.6]}
37... Kg8 {[%clk 0:01:45.4]} 38. Qd4 {[%clk 0:01:12.1]} 38... Qf4 {[%clk
0:01:42.9]} 39. Rd1 {[%clk 0:01:03.6]} 39... Qg5 {[%clk 0:01:26.6]} 40. Qd2
{[%clk 0:00:57.6]} 40... Qb5 {[%clk 0:01:23]} 41. Qc3 {[%clk 0:00:58.6]} 41...
a4 {[%clk 0:01:15.7]} 42. Qc4 {[%clk 0:00:58.8]} 42... Qxc4 {[%clk 0:01:14.5]}
43. Rxc4 {[%clk 0:00:58.7]} 43... axb3 {[%clk 0:01:15.1]} 44. axb3 {[%clk
0:01:00.6]} 44... Rb8 {[%clk 0:01:13.1]} 45. Rcd4 {[%clk 0:01:01.4]} 45... Rxb3
{[%clk 0:01:13.3]} 46. Rxd6 {[%clk 0:01:01.9]} 46... Rxd6 {[%clk 0:01:10.7]} 47.
Rxd6 {[%clk 0:01:02]} 47... Kf8 {[%clk 0:01:09.1]} 48. Rd7 {[%clk 0:01:01.7]}
48... Ke8 {[%clk 0:01:10.6]} 49. Ra7 {[%clk 0:01:02.4]} 49... Rd3 {[%clk
0:01:08.5]} 50. Kg3 {[%clk 0:01:02.8]} 50... Rd7 {[%clk 0:01:06.6]} 51. Ra8+
{[%clk 0:01:03.2]} 51... Ke7 {[%clk 0:01:07.8]} 52. e5 {[%clk 0:01:04.4]} 52...
f6 {[%clk 0:01:06.6]} 53. exf6+ {[%clk 0:01:03]} 53... Kxf6 {[%clk 0:01:08.5]}
54. Rf8+ {[%clk 0:01:02.3]} 54... Ke5 {[%clk 0:01:07.6]} 55. Re8 {[%clk
0:01:03.1]} 55... Rd1 {[%clk 0:01:01.8]} 56. f4+ {[%clk 0:01:03.1]} 56... Kf6
{[%clk 0:00:59.8]} 57. Rf8+ {[%clk 0:00:57.7]} 57... Ke7 {[%clk 0:01:00.4]} 58.
Ra8 {[%clk 0:00:57.7]} 58... Rd3+ {[%clk 0:01:01.6]} 59. Kf2 {[%clk 0:00:58]}
59... Kf7 {[%clk 0:01:01.4]} 60. Ra7+ {[%clk 0:00:57.6]} 60... Kf6 {[%clk
0:01:02.1]} 61. Ra6 {[%clk 0:00:58.5]} 61... Rd4 {[%clk 0:01:01.4]} 62. Ke3
{[%clk 0:00:58.9]} 62... Rb4 {[%clk 0:01:00.9]} 63. Kf3 {[%clk 0:00:58.5]} 63...
Rb3+ {[%clk 0:01:01.4]} 64. Ke4 {[%clk 0:00:59.2]} 64... Rb4+ {[%clk 0:01:03.3]}
65. Kf3 {[%clk 0:00:59.9]} 65... Rb3+ {[%clk 0:01:04.2]} 66. Kf2 {[%clk
0:01:01]} 66... Rb4 {[%clk 0:00:57.5]} 67. Kf3 {[%clk 0:01:01.1]} 1/2-1/2

[Event "*** Titled Tuesday Blitz"]
[Site "Chess.com"]
[Date "2019.09.03"]
[Round "3"]
[White "YQPerez"]
[Black "BASSU1"]
[Result "1-0"]
[WhiteElo "2771"]
[BlackElo "2533"]
[TimeControl "180+2"]
[EndTime "15:39:06 PDT"]
[Termination "YQPerez won by resignation"]

1. e4 {[%clk 0:03:01.9]} 1... e5 {[%clk 0:02:57.2]} 2. Nf3 {[%clk 0:03:00.3]}
2... Nc6 {[%clk 0:02:57.2]} 3. Nc3 {[%clk 0:03:01.4]} 3... Nf6 {[%clk
0:02:55.9]} 4. Bb5 {[%clk 0:03:02.9]} 4... Bb4 {[%clk 0:02:43]} 5. O-O {[%clk
0:03:03.6]} 5... O-O {[%clk 0:02:39.2]} 6. Bxc6 {[%clk 0:03:04.7]} 6... dxc6
{[%clk 0:02:40.2]} 7. d3 {[%clk 0:03:05.7]} 7... Re8 {[%clk 0:02:33]} 8. Ne2
{[%clk 0:03:06.3]} 8... Bg4 {[%clk 0:02:32.1]} 9. Ng3 {[%clk 0:03:06.9]} 9...
Nh5 {[%clk 0:02:24.6]} 10. h3 {[%clk 0:03:08]} 10... Nxg3 {[%clk 0:02:19]} 11.
fxg3 {[%clk 0:03:09.9]} 11... Bc5+ {[%clk 0:02:20.1]} 12. Kh2 {[%clk 0:03:09.3]}
12... Bxf3 {[%clk 0:02:21]} 13. Qxf3 {[%clk 0:03:09.8]} 13... Qd7 {[%clk
0:02:12.8]} 14. g4 {[%clk 0:03:08.1]} 14... h6 {[%clk 0:02:10.5]} 15. Qg3 {[%clk
0:02:53.4]} 15... Re6 {[%clk 0:02:00.7]} 16. Rf5 {[%clk 0:02:52.1]} 16... Rae8
{[%clk 0:01:58.9]} 17. Bd2 {[%clk 0:02:46.2]} 17... Rg6 {[%clk 0:01:57.2]} 18.
Raf1 {[%clk 0:02:44.9]} 18... Re7 {[%clk 0:01:56.9]} 19. Kh1 {[%clk 0:02:36.2]}
19... Bd4 {[%clk 0:01:51]} 20. Bc1 {[%clk 0:02:34.4]} 20... Rd6 {[%clk
0:01:46.2]} 21. h4 {[%clk 0:02:24.3]} 21... g6 {[%clk 0:01:37.8]} 22. R5f3
{[%clk 0:01:36.4]} 22... Kg7 {[%clk 0:01:32.5]} 23. h5 {[%clk 0:01:14.2]} 23...
Ree6 {[%clk 0:01:15]} 24. Rxf7+ {[%clk 0:00:59.2]} 24... Qxf7 {[%clk 0:01:15.4]}
25. Bxh6+ {[%clk 0:01:00.8]} 25... Kg8 {[%clk 0:01:16.5]} 26. Rxf7 {[%clk
0:01:02.3]} 26... Kxf7 {[%clk 0:01:18.4]} 27. Bg5 {[%clk 0:01:03.6]} 27... Kg8
{[%clk 0:01:08]} 28. Be3 {[%clk 0:00:42.5]} 28... Bxb2 {[%clk 0:01:00.9]} 29.
Qh4 {[%clk 0:00:41.9]} 29... b6 {[%clk 0:00:46.1]} 30. Qg5 {[%clk 0:00:38.9]}
30... Kh7 {[%clk 0:00:44.8]} 31. Qh4 {[%clk 0:00:34.6]} 31... Kg8 {[%clk
0:00:45.6]} 32. h6 {[%clk 0:00:27.7]} 32... Kh7 {[%clk 0:00:35.8]} 33. g5 {[%clk
0:00:28.9]} 33... Bd4 {[%clk 0:00:34.6]} 34. Bxd4 {[%clk 0:00:28.7]} 34... Rxd4
{[%clk 0:00:35.6]} 35. Qf2 {[%clk 0:00:28.7]} 35... Rd7 {[%clk 0:00:35]} 36. Qf8
{[%clk 0:00:29.8]} 36... Red6 {[%clk 0:00:36.2]} 37. Qe8 {[%clk 0:00:29.6]}
37... c5 {[%clk 0:00:33.7]} 38. Qxe5 {[%clk 0:00:30.1]} 38... Rf7 {[%clk
0:00:34.9]} 39. Kh2 {[%clk 0:00:28]} 39... Rdd7 {[%clk 0:00:34.7]} 40. a4 {[%clk
0:00:26.8]} 40... c4 {[%clk 0:00:35.5]} 41. dxc4 {[%clk 0:00:23.6]} 41... Rde7
{[%clk 0:00:32.7]} 42. Qd5 {[%clk 0:00:23.7]} 42... Rd7 {[%clk 0:00:33.5]} 43.
Qc6 {[%clk 0:00:23.7]} 43... Rd6 {[%clk 0:00:32.8]} 44. Qb7 {[%clk 0:00:23.5]}
44... a5 {[%clk 0:00:32.3]} 45. Kg3 {[%clk 0:00:20.1]} 45... Re6 {[%clk
0:00:32.5]} 46. Qd5 {[%clk 0:00:20.6]} 46... Rfe7 {[%clk 0:00:33.4]} 47. Kf4
{[%clk 0:00:21.1]} 47... c6 {[%clk 0:00:34.5]} 48. Qd4 {[%clk 0:00:19.7]} 48...
Rf7+ {[%clk 0:00:35.3]} 49. Ke3 {[%clk 0:00:20.5]} 49... Rfe7 {[%clk 0:00:33.8]}
50. g3 {[%clk 0:00:17.2]} 50... c5 {[%clk 0:00:32.8]} 51. Qd3 {[%clk 0:00:16.9]}
51... Re5 {[%clk 0:00:33.7]} 52. Kf4 {[%clk 0:00:18.3]} 52... Re8 {[%clk
0:00:31.4]} 53. Qd7+ {[%clk 0:00:15.3]} 53... R8e7 {[%clk 0:00:32.1]} 54. Qc6
{[%clk 0:00:15.7]} 54... R7e6 {[%clk 0:00:32.8]} 55. Qc7+ {[%clk 0:00:16.6]} 1-0